bitfinex/quotes_SOLUSD_20250814
["timestamp","ask_amount","ask_price","bid_price","bid_amount"]
[1755150254482,3.48696157,206.28,206.21,0.67]
[1755150254687,15.10621557,206.28,206.21,0.67]
[1755150254867,3.48681048,206.27,206.21,0.67]
[1755150255067,15.10621557,206.28,206.22,105.96]
[1755150255293,15.10621557,206.28,206.23,69.64]
[1755150255294,4.1868111,206.27,206.23,69.64]
[1755150255581,3.4868111,206.26,206.23,105.96]
[1755150255769,0.7,206.27,206.23,105.96]
[1755150255967,3.48791248,206.26,206.23,105.96]
[1755150256173,0.7,206.27,206.23,105.96]
[1755150256373,3.48704882,206.26,206.23,105.96]
[1755150256574,0.7,206.27,206.23,105.96]
[1755150256882,4.18814035,206.26,206.23,105.96]
[1755150257083,4.18814035,206.25,206.23,105.96]
[1755150257290,15.10621557,206.25,206.23,105.96]
[1755150257582,4.18735125,206.24,206.23,105.96]
[1755150257967,4.18735125,206.24,206.23,69.64]
[1755150258174,28.81406618,206.24,206.23,69.64]
[1755150258498,28.81406618,206.24,206.23,105.96]
[1755150258991,3.48735125,206.24,206.23,105.96]
[1755150259182,13.70785061,206.24,206.23,105.96]
[1755150259774,3.48735125,206.24,206.23,105.96]
[1755150261293,13.70785061,206.24,206.23,105.96]
[1755150263077,4.18735125,206.24,206.23,105.96]
[1755150263276,13.70785061,206.24,206.23,105.99]
[1755150264583,45.29356682,206.24,206.23,105.99]
[1755150266410,45.31100721,206.24,206.23,105.99]
[1755150266990,54.83150657,206.24,206.23,105.99]
[1755150267199,54.83150657,206.24,206.11,5.0]
[1755150267200,26.0,206.2,206.11,5.0]
[1755150267398,9.52049936,206.14,206.12,69.68]
[1755150267605,28.83150657,206.13,206.12,69.68]
[1755150267801,28.83150657,206.13,206.12,106.02]
[1755150268004,13.50479164,206.13,206.12,71.85]
[1755150268299,3.50479164,206.13,206.12,71.85]
[1755150268490,3.50479164,206.13,206.12,37.01]
[1755150269507,3.50479164,206.13,206.12,36.34]
[1755150270121,3.50479164,206.13,206.12,37.01]
[1755150270695,8.28901117,206.13,206.12,36.34]
[1755150272306,8.28901117,206.13,206.11,5.0]
[1755150272503,3.50479164,206.12,206.11,5.0]
[1755150272710,3.50479164,206.12,206.11,41.34]
[1755150274612,4.19479164,206.12,206.11,5.0]
[1755150274916,3.50479164,206.12,206.11,5.0]
[1755150275122,13.025291,206.12,206.11,74.72]
[1755150275320,13.715291,206.12,206.11,111.06]
[1755150275904,28.82150657,206.12,206.11,74.72]
[1755150276122,4.19479164,206.12,206.11,111.06]
[1755150276322,3.50479164,206.12,206.11,111.06]
[1755150276530,26.0,206.19,206.11,111.76]
[1755150276829,3.50899374,206.18,206.12,0.7]
[1755150277128,3.50899374,206.17,206.13,36.34]
[1755150277431,3.50899374,206.16,206.13,36.34]
[1755150277609,3.50899374,206.15,206.14,37.04]
[1755150277812,9.52049936,206.23,206.14,37.04]
[1755150277813,10.21049936,206.23,206.14,37.04]
[1755150278123,9.52049936,206.19,206.14,36.34]
[1755150278426,4.20110528,206.18,206.14,36.34]
[1755150278725,4.20110528,206.17,206.14,36.34]
[1755150278920,3.51110528,206.16,206.11,5.0]
[1755150279129,3.51110528,206.15,206.11,5.7]
[1755150279313,3.51110528,206.14,206.12,36.34]
[1755150279625,3.51345515,206.13,206.12,36.34]
[1755150279794,3.51345515,206.13,206.01,20.07387142]
[1755150279998,10.21049936,206.17,206.05,0.03]
[1755150279999,9.52049936,206.17,206.05,0.03]
[1755150280193,13.7244633,206.16,206.05,0.03]
[1755150280407,3.51396394,206.15,206.05,0.03]
[1755150280700,3.51396394,206.14,206.05,0.03]
[1755150280900,3.51396394,206.13,206.05,0.03]
[1755150281206,10.21049936,206.18,206.06,36.34]
[1755150281521,3.51747013,206.17,206.06,36.34]
[1755150281836,3.51747013,206.16,206.06,36.34]
[1755150282128,3.51747013,206.15,206.07,0.23]
[1755150282354,3.51747013,206.14,206.07,0.23]
[1755150282504,0.69,206.18,206.07,0.23]
[1755150282706,3.52024414,206.17,206.07,0.23]
[1755150282929,14.47,206.35,206.07,0.23]
[1755150282930,0.75,206.22,206.07,0.23]
[1755150283236,3.52143949,206.21,206.07,0.23]
[1755150283396,0.06,206.22,206.11,10.0]
[1755150283603,0.06,206.22,206.07,3.62684264]
[1755150283604,0.06,206.22,206.13,10.0]
[1755150283804,0.06,206.22,206.14,0.23]
[1755150285006,0.06,206.22,206.15,69.72]
[1755150285239,0.06,206.22,206.16,0.23]
[1755150285433,0.06,206.22,206.17,36.34]
[1755150285731,0.06,206.22,206.18,0.23]
[1755150286036,0.06,206.22,206.19,0.23]
[1755150286251,0.69,206.33,206.2,26.23]
[1755150286454,0.69,206.33,206.21,0.23]
[1755150286658,0.69,206.35,206.22,36.34]
[1755150286826,0.69,206.35,206.23,0.23]
[1755150288553,4.78614338,206.36,206.23,0.23]
[1755150288742,0.69,206.37,206.23,0.23]
[1755150288944,4.86695239,206.4,206.25,26.0]
[1755150289250,0.69,206.4,206.26,0.23]
[1755150289457,0.69,206.4,206.27,36.32]
[1755150289834,0.69,206.4,206.28,0.23]
[1755150290237,0.06,206.42,206.31,26.0]
[1755150290452,0.75,206.42,206.32,36.55]
[1755150290654,0.75,206.42,206.33,36.32]
[1755150290862,0.75,206.42,206.32,0.23]
[1755150291051,0.75,206.42,206.34,36.32]
[1755150291560,0.75,206.42,206.34,36.55]
[1755150291561,0.06,206.42,206.34,36.55]
[1755150291733,0.69,206.41,206.31,0.23]
[1755150291939,9.52049936,206.4,206.32,36.32]
[1755150292231,0.69,206.39,206.32,36.32]
[1755150293237,0.75,206.42,206.33,0.23]
[1755150293443,0.75,206.42,206.34,36.32]
[1755150295067,0.75,206.42,206.35,69.68]
[1755150295444,0.06,206.42,206.35,69.68]
[1755150295867,0.69,206.41,206.35,69.68]
[1755150296068,0.69,206.41,206.36,36.3]
[1755150297059,0.69,206.4,206.36,36.3]
[1755150297261,0.69,206.39,206.36,36.3]
[1755150297453,0.69,206.38,206.36,36.3]
[1755150297782,0.06,206.42,206.36,36.53]
[1755150297783,0.75,206.42,206.36,36.53]
[1755150297969,0.75,206.42,206.36,36.3]
[1755150299583,0.75,206.42,206.33,0.23]
[1755150299767,0.75,206.42,206.37,36.3]
[1755150300086,0.75,206.42,206.33,0.23]
[1755150300249,0.06,206.42,206.38,36.3]
[1755150300588,0.06,206.42,206.39,0.23]
[1755150300775,0.06,206.42,206.39,2.163348]
[1755150300982,0.06,206.44,206.39,2.163348]
[1755150301265,0.72,206.54,206.41,26.0]
[1755150301467,2.653348,206.54,206.39,1.933348]
[1755150301770,2.653348,206.54,206.29,8.48292669]
[1755150301771,9.52049936,206.47,206.3,10.0]
[1755150301974,0.72,206.46,206.33,35.520499]
[1755150302170,0.72,206.46,206.34,0.23]
[1755150302750,0.72,206.46,206.35,36.3]
[1755150303076,9.52049936,206.52,206.36,0.23]
[1755150303248,1.933348,206.54,206.33,35.520499]
[1755150303249,10.24049936,206.46,206.33,35.520499]
[1755150303457,0.72,206.45,206.37,36.3]
[1755150304586,0.72,206.45,206.35,0.23]
[1755150304793,0.72,206.45,206.38,36.28]
[1755150304966,0.72,206.47,206.39,69.64]
[1755150305482,0.72,206.47,206.33,14.503614]
[1755150305483,9.52049936,206.46,206.33,14.503614]
[1755150305654,0.72,206.45,206.34,69.64]
[1755150305861,9.52049936,206.44,206.34,105.92]
[1755150306059,0.72,206.43,206.34,105.92]
[1755150306279,9.52049936,206.4,206.34,69.64]
[1755150306587,0.72,206.39,206.35,36.28]
[1755150307290,9.52049936,206.41,206.35,36.28]
[1755150307456,0.72,206.41,206.35,36.28]
[1755150308450,0.72,206.44,206.35,36.28]
[1755150309265,0.72,206.44,206.35,36.51]
[1755150309461,0.78,206.47,206.36,0.23]
[1755150309770,0.06,206.47,206.39,26.0]
[1755150309971,0.06,206.5,206.41,10.0]
[1755150310151,0.06,206.5,206.44,26.0]
[1755150310355,0.06,206.5,206.45,0.23]
[1755150310979,0.72,206.49,206.42,0.23]
[1755150311161,0.06,206.5,206.43,36.28]
[1755150311484,0.06,206.5,206.44,0.23]
[1755150311782,0.06,206.5,206.43,36.28]
[1755150312082,0.06,206.5,206.44,36.28]
[1755150312582,0.06,206.5,206.43,0.23]
[1755150312755,0.06,206.5,206.44,36.28]
[1755150313276,0.06,206.5,206.45,0.23]
[1755150313478,0.06,206.5,206.44,36.28]
[1755150313684,0.78,206.5,206.45,36.28]
[1755150314091,0.06,206.5,206.45,36.28]
[1755150314311,0.72,206.49,206.38,0.23]
[1755150314456,0.72,206.49,206.39,36.28]
[1755150314980,0.72,206.49,206.4,69.64]
[1755150315590,0.72,206.49,206.41,36.28]
[1755150317291,0.72,206.49,206.41,36.51]
[1755150318059,0.06,206.5,206.41,36.51]
[1755150318392,0.72,206.49,206.42,36.26]
[1755150318573,0.72,206.49,206.43,36.26]
[1755150318773,0.72,206.49,206.36,0.23]
[1755150318774,0.72,206.49,206.44,36.26]
[1755150318975,0.72,206.48,206.45,36.26]
[1755150319178,0.72,206.47,206.45,36.26]
[1755150319359,26.78,206.5,206.45,36.26]
[1755150319915,0.72,206.49,206.37,14.498708]
[1755150320194,26.0,206.48,206.38,36.26]
[1755150320364,0.72,206.47,206.38,36.26]
[1755150321795,0.72,206.47,206.36,0.26]
[1755150322204,0.72,206.47,206.37,36.26]
[1755150323176,0.72,206.47,206.36,0.03]
[1755150323177,17.96689827,206.46,206.36,0.03]
[1755150323374,4.23596758,206.45,206.37,36.26]
[1755150323593,0.72,206.44,206.37,36.26]
[1755150325017,0.72,206.44,206.38,69.6]
[1755150325980,26.72,206.44,206.38,69.6]
[1755150326181,18.6960551,206.43,206.38,69.6]
[1755150326412,4.24512441,206.42,206.39,36.26]
[1755150326580,3.52951988,206.41,206.39,36.26]
[1755150326775,4.24951988,206.4,206.39,36.26]
[1755150328913,3.52951988,206.4,206.39,36.26]
[1755150330716,4.20951988,206.4,206.39,36.26]
[1755150332039,3.52951988,206.4,206.39,36.26]
[1755150332210,3.52951988,206.4,206.39,36.29]
[1755150332413,4.20951988,206.4,206.39,36.29]
[1755150333920,13.75312751,206.4,206.39,36.29]
[1755150334725,4.20951988,206.4,206.39,36.29]
[1755150334948,4.20951988,206.4,206.39,71.11]
[1755150335126,30.20951988,206.4,206.39,105.93]
[1755150335937,3.52951988,206.4,206.39,105.93]
[1755150336133,4.20951988,206.4,206.39,105.93]
[1755150336330,14.504315,206.46,206.39,105.93]
[1755150336331,0.68,206.43,206.39,105.93]
[1755150336517,4.23539041,206.42,206.39,105.93]
[1755150336718,3.55539041,206.41,206.39,71.11]
[1755150336922,0.68,206.42,206.39,71.11]
[1755150337230,0.68,206.45,206.39,71.11]
[1755150337420,3.55661609,206.44,206.39,71.11]
[1755150337735,4.23661609,206.43,206.39,36.29]
[1755150337934,15.183614,206.47,206.39,36.52]
[1755150338143,3.55817223,206.46,206.39,36.52]
[1755150338318,3.55817223,206.45,206.39,36.29]
[1755150338632,0.68,206.46,206.39,36.29]
[1755150338837,3.55828969,206.45,206.39,36.29]
[1755150339034,0.68,206.46,206.39,36.29]
[1755150339436,3.55852767,206.45,206.39,36.29]
[1755150339639,13.7821353,206.44,206.39,0.03]
[1755150339846,13.7821353,206.43,206.4,36.26]
[1755150340137,9.54360763,206.41,206.39,0.03]
[1755150340354,4.23852767,206.4,206.39,0.03]
[1755150340523,4.23852767,206.4,206.39,36.29]
[1755150341125,0.68,206.4,206.39,36.29]
[1755150341326,14.505718,206.43,206.39,36.29]
[1755150341327,0.68,206.42,206.39,36.29]
[1755150341630,0.68,206.41,206.39,36.29]
[1755150342228,0.68,206.4,206.39,36.29]
[1755150343923,0.68,206.43,206.39,36.29]
[1755150344251,0.68,206.42,206.39,36.29]
[1755150344831,15.185016,206.45,206.39,36.29]
[1755150345149,0.68,206.45,206.4,69.64]
[1755150345643,0.68,206.48,206.4,35.05]
[1755150347440,0.68,206.48,206.4,0.23]
[1755150348158,0.68,206.48,206.39,36.29]
[1755150348357,0.68,206.48,206.39,0.03]
[1755150348562,0.68,206.48,206.4,36.24]
[1755150349148,0.68,206.48,206.41,36.24]
[1755150349355,10.22360763,206.48,206.41,36.24]
[1755150349547,9.54360763,206.46,206.41,36.24]
[1755150349738,0.68,206.45,206.41,36.24]
[1755150350055,0.68,206.44,206.41,36.24]
[1755150350257,35.60360763,206.49,206.41,36.24]
[1755150350448,0.74,206.49,206.41,36.24]
[1755150351325,10.28360763,206.49,206.41,36.24]
[1755150351552,0.74,206.49,206.41,36.24]
[1755150351738,0.74,206.49,206.4,0.23]
[1755150351937,0.74,206.49,206.41,36.24]
[1755150352147,0.74,206.49,206.42,36.24]
[1755150352334,0.74,206.49,206.43,36.24]
[1755150352534,0.74,206.49,206.44,36.24]
[1755150353159,0.68,206.48,206.44,36.24]
[1755150353538,0.06,206.49,206.44,36.24]
[1755150353849,0.74,206.49,206.44,36.24]
[1755150354931,0.06,206.48,206.45,69.64]
[1755150357153,0.06,206.48,206.46,0.23]
[1755150357338,0.06,206.48,206.47,0.23]
[1755150359328,0.06,206.49,206.47,0.23]
[1755150359532,0.06,206.49,206.48,36.45]
[1755150360439,0.06,206.49,206.48,0.23]
[1755150360637,0.06,206.49,206.48,36.45]
[1755150361332,0.06,206.52,206.49,15.10621557]
[1755150361536,0.06,206.52,206.5,0.23]
[1755150361766,0.67,206.63,206.52,26.0]
[1755150361937,0.67,206.63,206.53,51.55621557]
[1755150362134,9.54360763,206.67,206.53,51.55621557]
[1755150362135,0.67,206.66,206.53,51.55621557]
[1755150362373,0.06,206.56,206.55,26.0]
[1755150362578,0.06,206.56,206.55,41.33621557]
[1755150362739,9.54360763,206.7,206.58,26.0]
[1755150362942,9.54360763,206.69,206.51,10.0]
[1755150363149,10.21360763,206.61,206.52,36.45]
[1755150363340,0.67,206.61,206.52,36.45]
[1755150363855,0.67,206.63,206.53,0.23]
[1755150364241,0.67,206.63,206.53,15.33621557]
[1755150364435,0.67,206.66,206.54,15.33621557]
[1755150364657,0.67,206.66,206.55,15.33621557]
[1755150364868,0.67,206.66,206.56,15.33621557]
[1755150365040,0.67,206.66,206.57,106.03]
[1755150365237,0.67,206.66,206.58,0.23]
[1755150365461,0.67,206.66,206.57,105.8]
[1755150365861,0.67,206.64,206.57,105.8]
[1755150366360,0.67,206.64,206.58,36.2]
[1755150366564,0.67,206.66,206.58,36.43]
[1755150366767,0.87,206.59,206.5,0.23]
[1755150367061,0.87,206.59,206.51,36.2]
[1755150367454,10.41360763,206.59,206.51,36.2]
[1755150367664,0.87,206.59,206.51,36.2]
[1755150369046,10.21360763,206.58,206.47,0.23]
[1755150369248,10.21360763,206.57,206.48,36.18]
[1755150369542,0.67,206.56,206.47,0.23]
[1755150369741,0.67,206.56,206.48,36.18]
[1755150369966,0.67,206.56,206.47,26.23]
[1755150370276,0.67,206.56,206.48,36.18]
[1755150370767,0.67,206.56,206.49,36.18]
[1755150371354,0.67,206.56,206.47,26.23]
[1755150371571,0.67,206.56,206.48,36.18]
[1755150372276,0.67,206.58,206.49,15.33621557]
[1755150372666,0.67,206.58,206.5,0.23]
[1755150372866,0.2,206.59,206.5,15.33621557]
[1755150373080,0.2,206.59,206.51,15.33621557]
[1755150373659,0.2,206.59,206.51,0.23]
[1755150374359,0.2,206.59,206.51,10.23]
[1755150374688,0.2,206.59,206.52,0.23]
[1755150374861,0.2,206.59,206.54,15.10621557]
[1755150375178,0.2,206.59,206.56,15.10621557]
[1755150375384,0.2,206.59,206.55,69.56]
[1755150375550,0.2,206.59,206.56,0.23]
[1755150375750,0.2,206.59,206.56,15.33621557]
[1755150375953,0.2,206.59,206.58,26.0]
[1755150376155,0.2,206.59,206.58,62.41]
[1755150376568,0.2,206.59,206.58,77.51621557]
[1755150376769,0.06,206.61,206.59,15.10621557]
[1755150376966,0.06,206.61,206.6,0.23]
[1755150379408,0.67,206.68,206.62,26.0]
[1755150379564,0.67,206.68,206.63,36.16]
[1755150379761,0.06,206.71,206.63,36.16]
[1755150379762,0.67,206.67,206.63,36.16]
[1755150380062,10.21360763,206.67,206.64,36.16]
[1755150380263,10.21360763,206.67,206.51,0.23]
[1755150380264,0.67,206.67,206.51,0.23]
[1755150380499,0.67,206.66,206.51,26.23]
[1755150380675,0.67,206.66,206.52,0.23]
[1755150380864,0.67,206.66,206.55,26.0]
[1755150381291,10.21360763,206.66,206.55,26.0]
[1755150381470,0.67,206.65,206.56,36.16]
[1755150381662,9.54360763,206.62,206.57,36.16]
[1755150381867,9.54360763,206.6,206.58,36.16]
[1755150382078,10.21360763,206.59,206.45,0.26]
[1755150382271,0.67,206.58,206.53,0.03]
[1755150383268,0.67,206.58,206.54,36.16]
[1755150384399,0.67,206.57,206.54,36.16]
[1755150384577,0.67,206.56,206.54,36.16]
[1755150384776,0.67,206.55,206.54,36.16]
[1755150384978,0.67,206.55,206.54,105.72]
[1755150386084,0.67,206.59,206.54,105.72]
[1755150386270,0.67,206.58,206.54,105.72]
[1755150387178,0.67,206.57,206.54,105.72]
[1755150387522,0.67,206.57,206.53,0.03]
[1755150387523,10.21360763,206.57,206.53,0.03]
[1755150387808,0.67,206.57,206.55,36.14]
[1755150389088,79.1,206.63,206.55,36.14]
[1755150389406,0.67,206.61,206.55,36.14]
[1755150392094,0.67,206.61,206.56,36.14]
[1755150392395,10.21360763,206.61,206.53,0.03]
[1755150392605,10.21360763,206.61,206.57,36.14]
[1755150392906,79.1,206.63,206.57,36.14]
[1755150392907,0.7,206.6,206.57,36.14]
[1755150393219,0.7,206.63,206.57,36.14]
[1755150393594,0.7,206.66,206.57,36.37]
[1755150394483,0.7,206.66,206.57,36.14]
[1755150394995,0.7,206.66,206.58,69.56]
[1755150395489,0.7,206.66,206.58,69.79]
[1755150395905,0.7,206.66,206.58,35.01]
[1755150397414,0.06,206.71,206.58,35.01]
[1755150397604,0.7,206.69,206.59,15.33621557]
[1755150397809,0.7,206.69,206.59,15.10621557]
[1755150397996,0.7,206.69,206.6,0.23]
[1755150398192,0.7,206.69,206.62,26.0]
[1755150398512,0.7,206.69,206.63,36.12]
[1755150398717,0.7,206.69,206.64,36.12]
[1755150399109,9.54360763,206.68,206.64,36.12]
[1755150399313,0.7,206.67,206.64,36.12]
[1755150399507,0.7,206.66,206.64,36.12]
[1755150399994,0.76,206.69,206.64,36.12]
[1755150400305,0.7,206.68,206.64,36.12]
[1755150400500,0.7,206.67,206.64,36.12]
[1755150401097,0.06,206.69,206.64,36.12]
[1755150401290,0.76,206.69,206.64,36.12]
[1755150401821,0.06,206.69,206.64,36.12]
[1755150402190,0.76,206.69,206.64,36.12]
[1755150402826,0.06,206.69,206.64,36.12]
[1755150403196,0.76,206.69,206.64,36.12]
[1755150403613,0.06,206.69,206.64,36.35]
[1755150405021,0.06,206.69,206.65,69.79]
[1755150405226,0.06,206.69,206.66,0.23]
[1755150405409,0.06,206.69,206.67,0.23]
[1755150405597,0.06,206.69,206.68,36.1]
[1755150406720,0.06,206.69,206.68,36.33]
[1755150407216,0.06,206.69,206.68,51.43621557]
[1755150408853,0.06,206.71,206.68,51.43621557]
[1755150408854,0.06,206.71,206.7,41.10621557]
[1755150409041,0.06,206.72,206.7,15.33621557]
[1755150409339,0.06,206.72,206.71,15.33621557]
[1755150409554,0.06,206.74,206.73,41.10621557]
[1755150410218,0.06,206.74,206.73,26.0]
[1755150411056,0.76,206.74,206.69,27.929989]
[1755150411353,0.7,206.73,206.7,62.08]
[1755150411545,0.06,206.74,206.7,62.08]
[1755150411722,0.76,206.74,206.7,62.08]
[1755150411922,0.06,206.74,206.7,62.08]
[1755150412228,0.76,206.74,206.7,62.08]
[1755150413622,0.06,206.74,206.7,62.08]
[1755150413826,0.76,206.74,206.7,62.08]
[1755150414532,0.06,206.74,206.7,62.08]
[1755150415060,0.06,206.74,206.71,69.52]
[1755150416838,0.06,206.74,206.71,69.75]
[1755150417043,0.06,206.74,206.72,15.10621557]
[1755150417239,0.06,206.74,206.73,36.29]
[1755150417442,0.06,206.76,206.75,41.10621557]
[1755150417642,0.06,206.76,206.75,77.39621557]
[1755150418038,0.06,206.78,206.76,15.10621557]
[1755150418242,0.06,206.78,206.77,36.06]
[1755150421134,0.06,206.78,206.74,15.10621557]
[1755150421135,0.78,206.78,206.73,1.929617]
[1755150421347,0.78,206.78,206.74,36.04]
[1755150421551,0.78,206.78,206.75,36.04]
[1755150421877,0.78,206.78,206.76,36.04]
[1755150422768,0.72,206.77,206.76,36.04]
[1755150425115,0.06,206.78,206.76,105.52]
[1755150426156,0.06,206.78,206.76,70.78]
[1755150427162,0.72,206.77,206.71,1.929711]
[1755150427376,9.50114945,206.75,206.71,1.929711]
[1755150427550,0.06,206.78,206.71,1.209711]
[1755150427551,9.50114945,206.72,206.71,1.209711]
[1755150427753,10.22114945,206.72,206.71,36.02]
[1755150429755,0.72,206.72,206.71,36.02]
[1755150431664,0.72,206.75,206.71,36.02]
[1755150431896,0.72,206.74,206.71,36.02]
[1755150432596,0.72,206.77,206.71,36.02]
[1755150434169,9.50114945,206.72,206.62,14.479114]
[1755150434379,9.50114945,206.71,206.63,36.0]
[1755150434595,0.72,206.7,206.66,26.0]
[1755150434894,0.72,206.74,206.67,36.7]
[1755150435096,0.72,206.74,206.68,34.76]
[1755150436799,10.22114945,206.74,206.68,34.76]
[1755150436979,9.50114945,206.74,206.68,34.76]
[1755150437187,0.72,206.73,206.68,34.76]
[1755150437492,9.50114945,206.75,206.67,36.0]
[1755150437493,0.72,206.72,206.67,36.0]
[1755150438669,0.72,206.71,206.61,0.73]
[1755150438902,0.72,206.71,206.62,36.0]
[1755150439071,0.72,206.74,206.63,15.80621557]
[1755150439278,0.72,206.74,206.65,26.0]
[1755150439490,0.72,206.74,206.66,36.0]
[1755150439685,0.72,206.74,206.63,15.10621557]
[1755150439686,9.50114945,206.73,206.61,0.03]
[1755150439886,9.50114945,206.71,206.65,26.0]
[1755150440089,0.72,206.7,206.66,36.0]
[1755150440284,0.72,206.69,206.66,36.0]
[1755150440486,0.72,206.68,206.66,36.0]
[1755150441498,0.72,206.72,206.66,36.0]
[1755150442580,9.50114945,206.71,206.66,36.0]
[1755150442785,0.72,206.7,206.66,36.0]
[1755150443001,0.72,206.69,206.66,36.0]
[1755150443201,0.72,206.68,206.66,36.0]
[1755150443382,0.72,206.67,206.61,0.03]
[1755150443695,10.22114945,206.67,206.62,36.0]
[1755150443999,94.20621557,206.73,206.62,36.0]
[1755150444000,0.72,206.66,206.62,36.0]
[1755150444204,0.72,206.65,206.62,36.0]
[1755150444503,0.72,206.64,206.62,36.0]
[1755150445092,0.72,206.64,206.63,69.52]
[1755150446611,0.72,206.66,206.62,36.0]
[1755150447875,0.72,206.69,206.62,36.0]
[1755150448078,0.72,206.69,206.62,36.7]
[1755150449490,79.1,206.72,206.63,15.10621557]
[1755150449699,0.06,206.74,206.65,15.10621557]
[1755150449900,0.72,206.73,206.66,36.68]
[1755150453600,0.06,206.74,206.67,0.66]
[1755150453803,0.06,206.74,206.68,15.10621557]
[1755150453982,0.06,206.74,206.71,26.0]
[1755150454187,0.06,206.74,206.72,35.98]
[1755150454704,0.06,206.74,206.73,0.66]
[1755150454880,0.06,206.74,206.73,15.76621557]
[1755150455079,0.06,206.74,206.73,85.28621557]
[1755150455498,0.06,206.74,206.73,69.52]
[1755150455693,0.06,206.74,206.73,35.42]
[1755150456606,0.06,206.74,206.73,15.76621557]
[1755150456997,0.06,206.78,206.75,26.0]
[1755150457191,0.06,206.78,206.76,61.96]
[1755150457391,0.06,206.78,206.77,0.66]
[1755150457598,0.06,206.81,206.78,41.10621557]
[1755150457800,0.06,206.81,206.78,41.76621557]
[1755150457992,0.06,206.81,206.79,36.62]
[1755150458193,0.06,206.81,206.8,0.66]
[1755150458599,0.06,206.81,206.79,35.96]
[1755150458800,0.06,206.81,206.8,35.96]
[1755150458994,0.06,206.81,206.8,36.62]
[1755150459887,0.06,206.81,206.8,35.96]
[1755150460988,0.71,206.81,206.8,35.96]
[1755150461190,0.71,206.81,206.74,26.0]
[1755150461436,0.71,206.81,206.78,26.0]
[1755150461621,0.71,206.81,206.79,35.94]
[1755150462890,0.06,206.81,206.79,35.94]
[1755150464604,0.06,206.81,206.79,36.6]
[1755150465035,0.06,206.81,206.8,70.18]
[1755150465514,0.06,206.81,206.8,35.42]
[1755150466598,0.06,206.81,206.8,50.52621557]
[1755150466802,0.06,206.81,206.8,15.76621557]
[1755150469596,0.71,206.81,206.7,5.13598087]
[1755150469804,0.71,206.81,206.79,1.929338]
[1755150470002,9.50399536,206.8,206.67,4.93689402]
[1755150470308,9.50399536,206.76,206.68,35.92]
[1755150470507,0.06,206.81,206.72,26.0]